[Event "*** Titled Tuesday Blitz"]
[Site "Chess.com"]
[Date "2020.11.03"]
[Round "2"]
[White "MasterKroket"]
[Black "HanSchut"]
[Result "1-0"]
[WhiteElo "2421"]
[BlackElo "2208"]
[TimeControl "180+1"]
[EndTime "10:19:01 PST"]
[Termination "MasterKroket won by resignation"]

1. d4 {[%clk 0:03:00.9]} 1... Nf6 {[%clk 0:02:59.9]} 2. c4 {[%clk 0:03:01.5]}
2... g6 {[%clk 0:03:00]} 3. Nc3 {[%clk 0:03:01.5]} 3... d5 {[%clk 0:03:00.2]} 4.
cxd5 {[%clk 0:03:02.4]} 4... Nxd5 {[%clk 0:03:00.3]} 5. e4 {[%clk 0:03:03.1]}
5... Nxc3 {[%clk 0:03:00.8]} 6. bxc3 {[%clk 0:03:04]} 6... Bg7 {[%clk
0:03:01.2]} 7. Be3 {[%clk 0:03:04.8]} 7... c5 {[%clk 0:03:01.1]} 8. Qd2 {[%clk
0:03:04.5]} 8... Qa5 {[%clk 0:03:00.5]} 9. Nf3 {[%clk 0:03:04.9]} 9... Nc6
{[%clk 0:02:59]} 10. Rb1 {[%clk 0:03:03.9]} 10... a6 {[%clk 0:02:58.8]} 11. Rc1
{[%clk 0:03:01.5]} 11... cxd4 {[%clk 0:02:58.3]} 12. cxd4 {[%clk 0:03:00.7]}
12... Qxd2+ {[%clk 0:02:58.9]} 13. Kxd2 {[%clk 0:03:01.6]} 13... O-O {[%clk
0:02:58.4]} 14. d5 {[%clk 0:03:00.7]} 14... Rd8 {[%clk 0:02:39.7]} 15. Bd3
{[%clk 0:02:58]} 15... Nb4 {[%clk 0:02:34]} 16. Bb1 {[%clk 0:02:48.2]} 16... e6
{[%clk 0:02:26.8]} 17. Bb6 {[%clk 0:02:14.9]} 17... Rd7 {[%clk 0:01:55.7]} 18.
a3 {[%clk 0:02:00.7]} 18... exd5 {[%clk 0:01:55.1]} 19. axb4 {[%clk 0:01:55.1]}
19... dxe4+ {[%clk 0:01:54.7]} 20. Ke2 {[%clk 0:01:39.7]} 20... exf3+ {[%clk
0:01:53]} 21. Kxf3 {[%clk 0:01:40.2]} 21... Rd6 {[%clk 0:01:27.5]} 22. Bc5
{[%clk 0:01:27.8]} 22... Rf6+ {[%clk 0:01:26.9]} 23. Ke2 {[%clk 0:01:28.1]}
23... Bf5 {[%clk 0:01:13.2]} 24. Bxf5 {[%clk 0:01:19.9]} 24... Rxf5 {[%clk
0:01:02.6]} 25. Rhd1 {[%clk 0:01:19]} 25... Bf8 {[%clk 0:00:36.6]} 26. Rd7
{[%clk 0:01:16.1]} 26... Bxc5 {[%clk 0:00:34.8]} 27. bxc5 {[%clk 0:01:13.6]}
27... Rc8 {[%clk 0:00:32.1]} 28. Rxb7 {[%clk 0:01:10.7]} 28... Rfxc5 {[%clk
0:00:28.1]} 29. Rxc5 {[%clk 0:00:54.5]} 29... Rxc5 {[%clk 0:00:27.8]} 30. Ra7
{[%clk 0:00:55]} 30... Ra5 {[%clk 0:00:27.9]} 31. g3 {[%clk 0:00:51.9]} 31...
Kg7 {[%clk 0:00:27.2]} 32. h4 {[%clk 0:00:52]} 32... h5 {[%clk 0:00:27]} 33. Kf3
{[%clk 0:00:52.3]} 33... Ra1 {[%clk 0:00:26.5]} 34. Ke3 {[%clk 0:00:51]} 34...
a5 {[%clk 0:00:27]} 35. Kf3 {[%clk 0:00:51.4]} 35... a4 {[%clk 0:00:27.6]} 36.
Ra6 {[%clk 0:00:49.7]} 36... a3 {[%clk 0:00:27.6]} 37. Ke3 {[%clk 0:00:48.6]}
37... Kf8 {[%clk 0:00:27.8]} 38. Ra7 {[%clk 0:00:48.2]} 38... Ke8 {[%clk
0:00:27.8]} 39. Kf3 {[%clk 0:00:47.8]} 39... Kd8 {[%clk 0:00:25.7]} 40. Rxf7
{[%clk 0:00:46]} 40... Kc8 {[%clk 0:00:24.8]} 41. Ra7 {[%clk 0:00:46.1]} 41...
Kb8 {[%clk 0:00:24.7]} 42. Ra4 {[%clk 0:00:44.7]} 42... Kb7 {[%clk 0:00:25]} 43.
Kf4 {[%clk 0:00:45.4]} 43... Kb6 {[%clk 0:00:25.6]} 44. Kg5 {[%clk 0:00:45.9]}
44... Kb5 {[%clk 0:00:24]} 45. Ra8 {[%clk 0:00:46]} 45... Kb4 {[%clk 0:00:20.2]}
46. Kxg6 {[%clk 0:00:46.4]} 46... Rf1 {[%clk 0:00:20.4]} 47. Kxh5 {[%clk
0:00:38.5]} 47... Rxf2 {[%clk 0:00:20.8]} 48. g4 {[%clk 0:00:37.8]} 48... Rc2
{[%clk 0:00:20.6]} 49. g5 {[%clk 0:00:33.8]} 49... Rc5 {[%clk 0:00:20.7]} 50.
Rxa3 {[%clk 0:00:32.4]} 50... Kxa3 {[%clk 0:00:20.8]} 51. Kh6 {[%clk 0:00:33.1]}
51... Rc4 {[%clk 0:00:20.3]} 52. h5 {[%clk 0:00:33.2]} 52... Kb4 {[%clk
0:00:20.6]} 53. g6 {[%clk 0:00:33.6]} 1-0

[Event "*** Titled Tuesday Blitz"]
[Site "Chess.com"]
[Date "2020.11.03"]
[Round "2"]
[White "Synctel"]
[Black "Xeniya2005"]
[Result "0-1"]
[WhiteElo "2000"]
[BlackElo "2373"]
[TimeControl "180+1"]
[EndTime "10:19:01 PST"]
[Termination "Xeniya2005 won on time"]

1. e4 {[%clk 0:03:00.9]} 1... e6 {[%clk 0:03:00]} 2. d4 {[%clk 0:02:59.9]} 2...
d5 {[%clk 0:02:59.6]} 3. Nd2 {[%clk 0:02:59.9]} 3... c5 {[%clk 0:02:59.5]} 4.
Ngf3 {[%clk 0:02:58.7]} 4... cxd4 {[%clk 0:02:58.6]} 5. Nxd4 {[%clk 0:02:58.4]}
5... Nc6 {[%clk 0:02:58.5]} 6. Nxc6 {[%clk 0:02:58]} 6... bxc6 {[%clk
0:02:57.7]} 7. Bd3 {[%clk 0:02:58.6]} 7... Bd6 {[%clk 0:02:48.8]} 8. Qe2 {[%clk
0:02:46.5]} 8... Qc7 {[%clk 0:02:44]} 9. Nf3 {[%clk 0:02:32.6]} 9... Ne7 {[%clk
0:02:40]} 10. e5 {[%clk 0:02:30.2]} 10... Bc5 {[%clk 0:02:39.3]} 11. O-O {[%clk
0:02:24.4]} 11... Ng6 {[%clk 0:02:37.2]} 12. c4 {[%clk 0:02:08.1]} 12... Bd7
{[%clk 0:02:24.2]} 13. a3 {[%clk 0:01:57.2]} 13... a5 {[%clk 0:02:19.4]} 14. Bd2
{[%clk 0:01:57.3]} 14... O-O {[%clk 0:02:11.7]} 15. b4 {[%clk 0:01:50.8]} 15...
axb4 {[%clk 0:01:41.8]} 16. axb4 {[%clk 0:01:51.7]} 16... dxc4 {[%clk 0:01:29]}
17. Bxg6 {[%clk 0:01:41.4]} 17... Bxf2+ {[%clk 0:01:17]} 18. Qxf2 {[%clk
0:01:33.7]} 18... fxg6 {[%clk 0:01:07.4]} 19. Rxa8 {[%clk 0:01:29]} 19... Rxa8
{[%clk 0:01:05.9]} 20. Ng5 {[%clk 0:01:25.6]} 20... Qd8 {[%clk 0:00:51.7]} 21.
Qf7+ {[%clk 0:01:19.5]} 21... Kh8 {[%clk 0:00:50.5]} 22. Ne4 {[%clk 0:00:54.8]}
22... c5 {[%clk 0:00:32.4]} 23. Bg5 {[%clk 0:00:41.2]} 23... Qc8 {[%clk
0:00:23]} 24. Nxc5 {[%clk 0:00:27.1]} 24... Bb5 {[%clk 0:00:15.6]} 25. Nxe6
{[%clk 0:00:24.3]} 25... Qg8 {[%clk 0:00:14]} 26. Qxg8+ {[%clk 0:00:16.7]} 26...
Kxg8 {[%clk 0:00:14.9]} 27. Rc1 {[%clk 0:00:12.5]} 27... Rc8 {[%clk 0:00:13.7]}
28. Nc5 {[%clk 0:00:11.8]} 28... Ra8 {[%clk 0:00:13.4]} 29. e6 {[%clk 0:00:12]}
29... Ra2 {[%clk 0:00:09.9]} 30. Bd8 {[%clk 0:00:10]} 30... Bc6 {[%clk
0:00:08.2]} 31. e7 {[%clk 0:00:10]} 31... Rxg2+ {[%clk 0:00:07.7]} 32. Kf1
{[%clk 0:00:09.5]} 32... Rg4 {[%clk 0:00:04.9]} 0-1

[Event "*** Titled Tuesday Blitz"]
[Site "Chess.com"]
[Date "2020.11.03"]
[Round "2"]
[White "MF1966Idrisov"]
[Black "Anton_Demchenko"]
[Result "0-1"]
[WhiteElo "2350"]
[BlackElo "2844"]
[TimeControl "180+1"]
[EndTime "10:19:02 PST"]
[Termination "Anton_Demchenko won on time"]

1. Nf3 {[%clk 0:03:00.9]} 1... Nf6 {[%clk 0:03:00.1]} 2. b3 {[%clk 0:03:01.1]}
2... g6 {[%clk 0:03:00.7]} 3. Bb2 {[%clk 0:03:01.3]} 3... Bg7 {[%clk 0:03:01.4]}
4. c4 {[%clk 0:03:01.7]} 4... O-O {[%clk 0:03:00.1]} 5. g3 {[%clk 0:03:02.1]}
5... d6 {[%clk 0:03:00.6]} 6. d4 {[%clk 0:03:01.4]} 6... Nbd7 {[%clk 0:03:01.2]}
7. Bg2 {[%clk 0:03:01.6]} 7... e5 {[%clk 0:03:01.8]} 8. dxe5 {[%clk 0:03:01.7]}
8... dxe5 {[%clk 0:03:02.7]} 9. Nc3 {[%clk 0:02:47.6]} 9... e4 {[%clk
0:03:00.5]} 10. Ng5 {[%clk 0:02:46.3]} 10... e3 {[%clk 0:03:00.6]} 11. fxe3
{[%clk 0:02:46]} 11... Ng4 {[%clk 0:02:47.9]} 12. Nh3 {[%clk 0:02:14]} 12...
Nxe3 {[%clk 0:02:45.4]} 13. Qd3 {[%clk 0:01:55.2]} 13... Nxg2+ {[%clk
0:02:44.8]} 14. Kf2 {[%clk 0:01:55.3]} 14... Nh4 {[%clk 0:02:26.6]} 15. gxh4
{[%clk 0:01:51.3]} 15... Qxh4+ {[%clk 0:02:26.5]} 16. Qg3 {[%clk 0:01:45.7]}
16... Qxg3+ {[%clk 0:02:22.7]} 17. hxg3 {[%clk 0:01:42.4]} 17... c6 {[%clk
0:02:22.5]} 18. Na4 {[%clk 0:01:41]} 18... Ne5 {[%clk 0:02:16.8]} 19. Rad1
{[%clk 0:01:26.4]} 19... Re8 {[%clk 0:02:12.6]} 20. Bxe5 {[%clk 0:01:21.6]}
20... Bxe5 {[%clk 0:02:11.2]} 21. Nf4 {[%clk 0:01:21.6]} 21... Bg4 {[%clk
0:02:08.4]} 22. Nc5 {[%clk 0:01:18.8]} 22... Bxf4 {[%clk 0:02:02.4]} 23. gxf4
{[%clk 0:01:18.6]} 23... Rxe2+ {[%clk 0:02:01.9]} 24. Kg3 {[%clk 0:01:18.7]}
24... h5 {[%clk 0:02:00.8]} 25. Nxb7 {[%clk 0:01:13]} 25... Re3+ {[%clk
0:02:00.8]} 26. Kh4 {[%clk 0:01:11.1]} 26... Bxd1 {[%clk 0:01:59.8]} 27. Rxd1
{[%clk 0:01:09.4]} 27... Rae8 {[%clk 0:01:55.7]} 28. Nd6 {[%clk 0:01:05.7]}
28... Rd8 {[%clk 0:01:53.6]} 29. c5 {[%clk 0:01:00.5]} 29... Rc3 {[%clk
0:01:41.5]} 30. b4 {[%clk 0:00:53.2]} 30... a5 {[%clk 0:01:40.8]} 31. bxa5
{[%clk 0:00:47.2]} 31... Rxc5 {[%clk 0:01:21.3]} 32. a6 {[%clk 0:00:45.7]} 32...
Ra8 {[%clk 0:01:15.1]} 33. Ne4 {[%clk 0:00:35.1]} 33... Rf5 {[%clk 0:01:12.7]}
34. Rf1 {[%clk 0:00:24.7]} 34... Rxa6 {[%clk 0:01:11.4]} 35. Nd6 {[%clk
0:00:24.2]} 35... Rd5 {[%clk 0:01:09.9]} 36. Ne8 {[%clk 0:00:24.3]} 36... Rda5
{[%clk 0:00:58.6]} 37. Nd6 {[%clk 0:00:14.3]} 37... Rxa2 {[%clk 0:00:54.5]} 38.
f5 {[%clk 0:00:14.4]} 38... Rd2 {[%clk 0:00:49]} 39. Ne8 {[%clk 0:00:09.9]}
39... Ra8 {[%clk 0:00:31.1]} 40. fxg6 {[%clk 0:00:09.3]} 40... fxg6 {[%clk
0:00:32]} 41. Nf6+ {[%clk 0:00:03.2]} 41... Kg7 {[%clk 0:00:32.3]} 0-1

[Event "*** Titled Tuesday Blitz"]
[Site "Chess.com"]
[Date "2020.11.03"]
[Round "2"]
[White "mamonika"]
[Black "Terao90"]
[Result "1-0"]
[WhiteElo "2006"]
[BlackElo "2355"]
[TimeControl "180+1"]
[EndTime "10:19:02 PST"]
[Termination "mamonika won by checkmate"]

1. e4 {[%clk 0:03:00.9]} 1... c5 {[%clk 0:03:00.2]} 2. Nf3 {[%clk 0:03:01.2]}
2... Nc6 {[%clk 0:03:00.6]} 3. d4 {[%clk 0:03:01.8]} 3... cxd4 {[%clk
0:03:01.5]} 4. Nxd4 {[%clk 0:03:01.9]} 4... g6 {[%clk 0:03:02.1]} 5. c4 {[%clk
0:02:59.1]} 5... Nf6 {[%clk 0:03:01.7]} 6. Nc3 {[%clk 0:02:56.5]} 6... d6 {[%clk
0:03:01.4]} 7. Be2 {[%clk 0:02:50.2]} 7... Nxd4 {[%clk 0:03:01.1]} 8. Qxd4
{[%clk 0:02:48.6]} 8... Bg7 {[%clk 0:03:02]} 9. Be3 {[%clk 0:02:47.8]} 9... O-O
{[%clk 0:03:02.1]} 10. Qd2 {[%clk 0:02:42]} 10... a5 {[%clk 0:03:02.2]} 11. O-O
{[%clk 0:02:41]} 11... a4 {[%clk 0:03:02.8]} 12. f3 {[%clk 0:02:38.5]} 12... Qa5
{[%clk 0:03:03.2]} 13. Rfd1 {[%clk 0:02:30.1]} 13... Be6 {[%clk 0:03:03.2]} 14.
Nd5 {[%clk 0:02:27.6]} 14... Nxd5 {[%clk 0:02:38.7]} 15. cxd5 {[%clk 0:02:26.4]}
15... Bd7 {[%clk 0:02:37.2]} 16. Rac1 {[%clk 0:02:19.8]} 16... Qxd2 {[%clk
0:02:28.2]} 17. Rxd2 {[%clk 0:02:18.2]} 17... Rfc8 {[%clk 0:02:24.5]} 18. Rdc2
{[%clk 0:02:17.7]} 18... Rxc2 {[%clk 0:02:09.3]} 19. Rxc2 {[%clk 0:02:16.9]}
19... Rc8 {[%clk 0:02:03.9]} 20. Rxc8+ {[%clk 0:02:11.2]} 20... Bxc8 {[%clk
0:02:04.8]} 21. b3 {[%clk 0:02:10.1]} 21... a3 {[%clk 0:01:50.4]} 22. Kf2 {[%clk
0:02:02.8]} 22... Bb2 {[%clk 0:01:48.2]} 23. Ke1 {[%clk 0:02:00.8]} 23... e6
{[%clk 0:01:39.8]} 24. Kd2 {[%clk 0:01:53.9]} 24... Kf8 {[%clk 0:01:13.6]} 25.
dxe6 {[%clk 0:01:36.2]} 25... Bxe6 {[%clk 0:01:10.7]} 26. Kc2 {[%clk 0:01:35.9]}
26... d5 {[%clk 0:01:07.3]} 27. exd5 {[%clk 0:01:24.8]} 27... Bxd5 {[%clk
0:01:08.2]} 28. Bc1 {[%clk 0:01:24]} 28... Bxc1 {[%clk 0:00:33.5]} 29. Kxc1
{[%clk 0:01:24.9]} 29... Ke7 {[%clk 0:00:34.1]} 30. Kc2 {[%clk 0:01:24.7]} 30...
Kd6 {[%clk 0:00:33.3]} 31. Kc3 {[%clk 0:01:25.1]} 31... Ke5 {[%clk 0:00:26.4]}
32. Kb4 {[%clk 0:00:59.8]} 32... Kf4 {[%clk 0:00:22.9]} 33. Kxa3 {[%clk
0:01:00.7]} 33... Ke3 {[%clk 0:00:23.4]} 34. Bc4 {[%clk 0:00:56]} 34... Bxc4
{[%clk 0:00:16.2]} 35. bxc4 {[%clk 0:00:56.9]} 35... Kf2 {[%clk 0:00:16.3]} 36.
Kb4 {[%clk 0:00:57.3]} 36... Kxg2 {[%clk 0:00:16.8]} 37. a4 {[%clk 0:00:57.8]}
37... Kxf3 {[%clk 0:00:13.1]} 38. c5 {[%clk 0:00:57.5]} 38... g5 {[%clk
0:00:09.5]} 39. c6 {[%clk 0:00:57.3]} 39... bxc6 {[%clk 0:00:09.6]} 40. a5
{[%clk 0:00:57.3]} 40... g4 {[%clk 0:00:09.8]} 41. a6 {[%clk 0:00:56.8]} 41...
h5 {[%clk 0:00:10.1]} 42. a7 {[%clk 0:00:56.7]} 42... h4 {[%clk 0:00:10.7]} 43.
a8=Q {[%clk 0:00:57]} 43... g3 {[%clk 0:00:11.3]} 44. Qxc6+ {[%clk 0:00:57.1]}
44... Kf2 {[%clk 0:00:11.6]} 45. hxg3 {[%clk 0:00:56.8]} 45... hxg3 {[%clk
0:00:11.8]} 46. Qf6+ {[%clk 0:00:56.4]} 46... Kg1 {[%clk 0:00:11.6]} 47. Qxf7
{[%clk 0:00:55.8]} 47... g2 {[%clk 0:00:11.9]} 48. Kc3 {[%clk 0:00:55.5]} 48...
Kh2 {[%clk 0:00:09.5]} 49. Qh5+ {[%clk 0:00:55.2]} 49... Kg1 {[%clk 0:00:09.6]}
50. Kd2 {[%clk 0:00:52.7]} 50... Kf1 {[%clk 0:00:09.1]} 51. Qh3 {[%clk
0:00:44.3]} 51... Kf2 {[%clk 0:00:08.9]} 52. Qe3+ {[%clk 0:00:43.9]} 52... Kf1
{[%clk 0:00:08.7]} 53. Qe1# {[%clk 0:00:44.8]} 1-0

[Event "*** Titled Tuesday Blitz"]
[Site "Chess.com"]
[Date "2020.11.03"]
[Round "2"]
[White "AldokhinIvan"]
[Black "SantoBlue"]
[Result "0-1"]
[WhiteElo "2582"]
[BlackElo "2901"]
[TimeControl "180+1"]
[EndTime "10:19:03 PST"]
[Termination "SantoBlue won by checkmate"]

1. e4 {[%clk 0:02:54.7]} 1... e5 {[%clk 0:02:55.5]} 2. Nf3 {[%clk 0:02:50.9]}
2... Nc6 {[%clk 0:02:55.6]} 3. Bb5 {[%clk 0:02:50.7]} 3... a6 {[%clk 0:02:55]}
4. Ba4 {[%clk 0:02:51]} 4... Nf6 {[%clk 0:02:54.5]} 5. O-O {[%clk 0:02:50.8]}
5... Be7 {[%clk 0:02:54.5]} 6. Re1 {[%clk 0:02:51]} 6... b5 {[%clk 0:02:53.7]}
7. Bb3 {[%clk 0:02:51.3]} 7... O-O {[%clk 0:02:51.1]} 8. d4 {[%clk 0:02:51.8]}
8... d6 {[%clk 0:02:49.7]} 9. c3 {[%clk 0:02:51.5]} 9... Bg4 {[%clk 0:02:49.8]}
10. d5 {[%clk 0:02:51.6]} 10... Na5 {[%clk 0:02:48.7]} 11. Bc2 {[%clk
0:02:52.2]} 11... c6 {[%clk 0:02:49.2]} 12. h3 {[%clk 0:02:52.6]} 12... Bh5
{[%clk 0:02:43.9]} 13. dxc6 {[%clk 0:02:52]} 13... Qc7 {[%clk 0:02:43.9]} 14.
Nbd2 {[%clk 0:02:52.2]} 14... Rad8 {[%clk 0:02:41.9]} 15. Qe2 {[%clk 0:02:43.9]}
15... Qxc6 {[%clk 0:02:37.8]} 16. Nf1 {[%clk 0:02:30.4]} 16... Nb7 {[%clk
0:02:33.4]} 17. Bg5 {[%clk 0:02:16.5]} 17... Bg6 {[%clk 0:02:20.8]} 18. Ng3
{[%clk 0:02:01.9]} 18... Nc5 {[%clk 0:02:18.6]} 19. Nh4 {[%clk 0:02:00.7]} 19...
Ne6 {[%clk 0:02:18.7]} 20. Nhf5 {[%clk 0:01:53.5]} 20... Qb7 {[%clk 0:02:18.9]}
21. Bc1 {[%clk 0:01:39.3]} 21... Rfe8 {[%clk 0:02:04.5]} 22. Qf3 {[%clk
0:01:37.4]} 22... Bf8 {[%clk 0:02:02.5]} 23. h4 {[%clk 0:01:31.9]} 23... d5
{[%clk 0:01:58.4]} 24. h5 {[%clk 0:01:21.1]} 24... dxe4 {[%clk 0:01:49.1]} 25.
Nxe4 {[%clk 0:01:10.3]} 25... Nxe4 {[%clk 0:01:36.9]} 26. Bxe4 {[%clk
0:01:06.7]} 26... Qd7 {[%clk 0:01:25.8]} 27. hxg6 {[%clk 0:01:03.4]} 27... hxg6
{[%clk 0:01:26.7]} 28. Ng3 {[%clk 0:00:37.4]} 28... Qc7 {[%clk 0:01:17.5]} 29.
a4 {[%clk 0:00:35.1]} 29... b4 {[%clk 0:01:13.3]} 30. a5 {[%clk 0:00:29.2]}
30... bxc3 {[%clk 0:01:12.8]} 31. bxc3 {[%clk 0:00:26.5]} 31... Bc5 {[%clk
0:01:07.2]} 32. Be3 {[%clk 0:00:24]} 32... Bxe3 {[%clk 0:01:03.1]} 33. Qxe3
{[%clk 0:00:22.5]} 33... Nf4 {[%clk 0:01:02.8]} 34. Reb1 {[%clk 0:00:16.1]}
34... Qe7 {[%clk 0:00:54.4]} 35. Rb7 {[%clk 0:00:15.2]} 35... Qh4 {[%clk
0:00:54.8]} 36. Qa7 {[%clk 0:00:13.2]} 36... Ra8 {[%clk 0:00:40.5]} 37. Qb6
{[%clk 0:00:12.4]} 37... Rad8 {[%clk 0:00:38.3]} 38. Re1 {[%clk 0:00:12.3]}
38... Re6 {[%clk 0:00:36.3]} 39. Qc7 {[%clk 0:00:09.8]} 39... Rf8 {[%clk
0:00:36.9]} 40. Bb1 {[%clk 0:00:08.5]} 40... g5 {[%clk 0:00:36.4]} 41. Ba2
{[%clk 0:00:06.6]} 41... Rh6 {[%clk 0:00:35.3]} 42. Rd1 {[%clk 0:00:05.9]} 42...
Qh2+ {[%clk 0:00:34.8]} 43. Kf1 {[%clk 0:00:05.9]} 43... Qh1+ {[%clk 0:00:35.3]}
44. Nxh1 {[%clk 0:00:06.4]} 44... Rxh1# {[%clk 0:00:36.2]} 0-1

[Event "*** Titled Tuesday Blitz"]
[Site "Chess.com"]
[Date "2020.11.03"]
[Round "2"]
[White "PlotnikovPavel"]
[Black "gumimis"]
[Result "1-0"]
[WhiteElo "2454"]
[BlackElo "2266"]
[TimeControl "180+1"]
[EndTime "10:19:04 PST"]
[Termination "PlotnikovPavel won on time"]

1. e4 {[%clk 0:03:00.9]} 1... c5 {[%clk 0:02:57]} 2. Nf3 {[%clk 0:02:59.7]} 2...
d6 {[%clk 0:02:52.9]} 3. d4 {[%clk 0:02:59.3]} 3... cxd4 {[%clk 0:02:53.8]} 4.
Nxd4 {[%clk 0:03:00.2]} 4... Nf6 {[%clk 0:02:53.9]} 5. Nc3 {[%clk 0:03:00.5]}
5... a6 {[%clk 0:02:54.1]} 6. Bg5 {[%clk 0:03:00.6]} 6... e6 {[%clk 0:02:47]} 7.
f4 {[%clk 0:03:00.2]} 7... h6 {[%clk 0:02:45.9]} 8. Bxf6 {[%clk 0:02:32.1]} 8...
Qxf6 {[%clk 0:02:44.9]} 9. Qd2 {[%clk 0:02:24.4]} 9... Nd7 {[%clk 0:02:42.9]}
10. O-O-O {[%clk 0:02:21.1]} 10... g5 {[%clk 0:02:36.4]} 11. g3 {[%clk
0:02:05.4]} 11... gxf4 {[%clk 0:02:35.2]} 12. gxf4 {[%clk 0:02:04.6]} 12... h5
{[%clk 0:02:29]} 13. Bg2 {[%clk 0:02:04.1]} 13... Bh6 {[%clk 0:02:26.5]} 14.
Rhf1 {[%clk 0:01:56.5]} 14... Nc5 {[%clk 0:01:51.1]} 15. Kb1 {[%clk 0:01:47.7]}
15... Bd7 {[%clk 0:01:48.8]} 16. a3 {[%clk 0:01:34.5]} 16... O-O-O {[%clk
0:01:46.8]} 17. Qe1 {[%clk 0:01:16.1]} 17... Qg7 {[%clk 0:01:28.5]} 18. Bh1
{[%clk 0:01:11.6]} 18... Bc6 {[%clk 0:01:25.6]} 19. Nxc6 {[%clk 0:01:06.3]}
19... bxc6 {[%clk 0:01:25.3]} 20. Qe2 {[%clk 0:01:03.5]} 20... Kb7 {[%clk
0:01:20.7]} 21. Qf2 {[%clk 0:00:51.9]} 21... Rhg8 {[%clk 0:00:58]} 22. e5 {[%clk
0:00:48.1]} 22... Nd7 {[%clk 0:00:16.2]} 23. Rxd6 {[%clk 0:00:45.3]} 23... Nb8
{[%clk 0:00:14.8]} 24. Na4 {[%clk 0:00:38.9]} 24... Rxd6 {[%clk 0:00:14.4]} 25.
Qb6+ {[%clk 0:00:31.9]} 25... Ka8 {[%clk 0:00:11.1]} 26. exd6 {[%clk 0:00:31.5]}
26... Rc8 {[%clk 0:00:08.5]} 27. d7 {[%clk 0:00:25]} 27... Nxd7 {[%clk
0:00:08.5]} 28. Bxc6+ {[%clk 0:00:24.2]} 28... Rxc6 {[%clk 0:00:07.5]} 29. Qxc6+
{[%clk 0:00:24.8]} 29... Kb8 {[%clk 0:00:07.9]} 30. Qxd7 {[%clk 0:00:24.7]}
30... Qg2 {[%clk 0:00:04.3]} 31. Qd6+ {[%clk 0:00:21.4]} 31... Ka7 {[%clk
0:00:03.3]} 32. Qc5+ {[%clk 0:00:20.2]} 32... Kb8 {[%clk 0:00:02.8]} 33. Qb6+
{[%clk 0:00:20.2]} 33... Kc8 {[%clk 0:00:02.6]} 34. Rd1 {[%clk 0:00:20.1]} 1-0

[Event "*** Titled Tuesday Blitz"]
[Site "Chess.com"]
[Date "2020.11.03"]
[Round "2"]
[White "Happy1712Drummer"]
[Black "LimeInTheCoconut"]
[Result "0-1"]
[WhiteElo "2199"]
[BlackElo "2416"]
[TimeControl "180+1"]
[EndTime "10:19:04 PST"]
[Termination "LimeInTheCoconut won on time"]

1. f4 {[%clk 0:02:49.5]} 1... e5 {[%clk 0:02:55.2]} 2. fxe5 {[%clk 0:02:46.2]}
2... d6 {[%clk 0:02:54.9]} 3. exd6 {[%clk 0:02:43.7]} 3... Bxd6 {[%clk
0:02:55.8]} 4. Nf3 {[%clk 0:02:42.1]} 4... Nf6 {[%clk 0:02:48.9]} 5. d4 {[%clk
0:02:39.1]} 5... Nc6 {[%clk 0:02:48.4]} 6. Qd3 {[%clk 0:02:24.2]} 6... Nb4
{[%clk 0:02:41]} 7. Qb3 {[%clk 0:02:18.8]} 7... Bf5 {[%clk 0:02:39.8]} 8. Na3
{[%clk 0:02:11.8]} 8... O-O {[%clk 0:02:31.3]} 9. c3 {[%clk 0:02:10.5]} 9...
Nbd5 {[%clk 0:02:25.1]} 10. Bg5 {[%clk 0:02:05.6]} 10... h6 {[%clk 0:02:19.8]}
11. Bd2 {[%clk 0:02:00.5]} 11... Re8 {[%clk 0:02:12.9]} 12. Nc4 {[%clk
0:01:58.9]} 12... Bf4 {[%clk 0:01:47.4]} 13. O-O-O {[%clk 0:01:47.5]} 13... b5
{[%clk 0:01:41.5]} 14. Nce5 {[%clk 0:01:42.7]} 14... Ne3 {[%clk 0:01:36.7]} 15.
Qxf7+ {[%clk 0:01:20.6]} 15... Kh7 {[%clk 0:01:31.6]} 16. g3 {[%clk 0:01:16.4]}
16... Rf8 {[%clk 0:01:14.7]} 17. Qb3 {[%clk 0:01:10.2]} 17... Bc2 {[%clk
0:01:14.3]} 18. Qe6 {[%clk 0:00:53.1]} 18... Re8 {[%clk 0:00:39.9]} 19. Qa6
{[%clk 0:00:37.2]} 19... Bxd1 {[%clk 0:00:23]} 20. gxf4 {[%clk 0:00:32.4]} 20...
Nxf1 {[%clk 0:00:22.8]} 21. Kxd1 {[%clk 0:00:13.8]} 21... Nxd2 {[%clk
0:00:21.3]} 22. Kxd2 {[%clk 0:00:14]} 22... Qd5 {[%clk 0:00:19.2]} 23. Rf1
{[%clk 0:00:12.1]} 23... Rad8 {[%clk 0:00:18.2]} 24. Qa5 {[%clk 0:00:11.3]}
24... c5 {[%clk 0:00:17.9]} 25. Kc1 {[%clk 0:00:10.8]} 25... cxd4 {[%clk
0:00:17.5]} 26. cxd4 {[%clk 0:00:08.7]} 26... Qe4 {[%clk 0:00:15.2]} 27. Qd2
{[%clk 0:00:05.9]} 27... Rc8+ {[%clk 0:00:15]} 28. Kd1 {[%clk 0:00:06.8]} 28...
Nd5 {[%clk 0:00:15.1]} 29. Qd3 {[%clk 0:00:03.8]} 29... Ne3+ {[%clk 0:00:14.4]}
30. Kd2 {[%clk 0:00:02.8]} 30... Nxf1+ {[%clk 0:00:13.1]} 31. Ke1 {[%clk
0:00:03.7]} 31... Rc1+ {[%clk 0:00:12.4]} 32. Kf2 {[%clk 0:00:04.1]} 32... Qxd3
{[%clk 0:00:11.7]} 33. Nxd3 {[%clk 0:00:03.8]} 33... Ra1 {[%clk 0:00:09]} 34.
Nfe5 {[%clk 0:00:03.3]} 34... Nxh2 {[%clk 0:00:08.7]} 0-1